{"text_format":"1","workbook":"xlsx","n_sheets":3,"sheets":["アンケート","集計表","グラフ計算シート"],"not_rendered":{"charts":1,"images":0,"macros":0,"external_links":0,"defined_names":1,"comments":1,"pivot_tables":0},"unopened":[],"bounds":{"document_bytes":16777216,"sheet_cells":100000,"rows_first":2000,"rows_last":500,"rows_between":2000,"halvings":0,"cell_chars":16384,"cell_head_chars":4096},"cells_cut":0,"cells_raw":0,"read":"whole","date_system":"1900"}

{"sheet":"アンケート","index":0,"n_rows":316,"n_cols":27,"rows_kept":316,"cut":false,"hidden":false,"merged":[[182,10,182,12],[139,10,139,12],[137,10,137,12],[138,10,138,12],[80,10,80,12],[81,10,81,12],[87,10,87,12],[96,3,98,19],[86,10,86,12],[88,10,88,12],[104,10,104,12],[121,3,123,19],[130,10,130,12],[129,10,129,12],[131,2,131,9],[131,10,131,12],[26,8,26,13],[53,2,55,18],[147,3,149,19],[180,10,180,12],[106,2,106,9],[106,10,106,12],[112,10,112,12],[111,10,111,12],[113,10,113,12],[169,3,171,19],[1,0,2,23],[3,1,3,23],[4,1,4,23],[14,0,14,23],[71,2,73,18],[27,1,27,5],[27,6,27,21],[29,0,29,23],[22,6,22,21],[6,1,7,23],[16,6,16,21],[17,6,17,21],[18,6,18,21],[19,6,19,21],[23,1,23,5],[24,1,24,5],[190,3,192,19],[20,6,20,21],[16,1,16,5],[17,1,17,5],[18,1,18,5],[19,1,19,5],[20,1,20,5],[79,10,79,12],[105,10,105,12],[25,1,25,5],[26,1,26,5],[57,2,58,23],[26,16,26,21],[23,6,23,21],[24,6,24,21],[25,6,25,21],[259,2,260,23],[269,2,270,23],[22,1,22,5],[314,19,315,23],[160,10,160,12],[159,10,159,12],[161,10,161,12],[208,3,209,23],[220,3,222,19],[176,10,176,12],[175,10,175,12],[177,2,177,9],[177,10,177,12],[181,10,181,12],[294,2,296,18],[307,2,311,18],[239,2,240,23],[233,3,234,23],[300,2,304,18],[151,0,152,1],[151,3,152,23],[155,10,155,12],[154,10,154,12],[156,2,156,9],[156,10,156,12],[298,2,299,23],[195,1,196,23],[235,3,237,19],[229,2,230,23],[208,0,209,1],[249,2,250,23],[279,2,280,23]]}
[null,null,null,null,null,null,null,null,null,null,null,null,null,null,null,null,null,null,null,null,null,null,null,"R06.01版"]
["ICT活用工事のアンケート調査（受注者用）"]
[]
["○","広島県では、建設現場における生産性向上のため、ICT活用工事の取組を行っています。"]
["○","つきましては、お手数をおかけしますが、対象工事の受注者の方はアンケート調査にご協力をお願いします。"]
["【回答対象工事】"]
["○","「ICT活用工事（発注者指定型）」、「ICT活用工事（発注者指定（簡易）型）」、「ICT活用工事（受注者希望型）」とした工事を対象とします。"]
[]
["○","なお、活用希望しなかった場合も対象とします。"]
["【回答対象者】"]
["○","「現場代理人」又は「主任（監理）技術者」とします。"]
["【提出方法】"]
["○","メールで技術管理課に提出してください。"]
[null,"技術管理課メールアドレス　：　",null,null,null,null,null,"gijutsukanri@union.hiroshima-water.lg.jp"]
["□基本情報を入力してください。"]
["1　施工者情報"]
[null,"会社名"]
[null,"回答者"]
[null,"役職　（リストから選択）"]
[null,"電話番号"]
[null,"メールアドレス"]
["2　工事情報"]
[null,"発注事務所"]
[null,"施行番号"]
[null,"工事名"]
[null,"施工場所"]
[null,"工期",null,null,null,null,"始期日",null,null,null,null,null,null,null,"終期日"]
[null,"最終契約金額（税込）"]
[]
["□質問の回答を入力してください。"]
["問１",null,"本工事のICT実施の有無等について、次から選択してください。"]
[null,null,"土工において、全面的な活用を実施した（ICT活用工事）",null,null,null,null,null,null,null,null,null,null,null,null,null,null,null,null,null,null,null,null,null,null,false]
[null,null,"土工において、部分的な活用を実施した（簡易型ICT活用工事）",null,null,null,null,null,null,null,null,null,null,null,null,null,null,null,null,null,null,null,null,null,null,false]
[null,null,"舗装工において、全面的な活用を実施した（ICT活用工事）",null,null,null,null,null,null,null,null,null,null,null,null,null,null,null,null,null,null,null,null,null,null,false]
[null,null,"舗装工において、部分的な活用を実施した（簡易型ICT活用工事）",null,null,null,null,null,null,null,null,null,null,null,null,null,null,null,null,null,null,null,null,null,null,false]
[null,null,"河川浚渫において、全面的な活用を実施した（ICT活用工事）",null,null,null,null,null,null,null,null,null,null,null,null,null,null,null,null,null,null,null,null,null,null,false]
[null,null,"河川浚渫において、部分的な活用を実施した（簡易型ICT活用工事）",null,null,null,null,null,null,null,null,null,null,null,null,null,null,null,null,null,null,null,null,null,null,false]
[null,null,"作業土工（床掘）において、全面的な活用を実施した（ICT活用工事）",null,null,null,null,null,null,null,null,null,null,null,null,null,null,null,null,null,null,null,null,null,null,false]
[null,null,"作業土工（床掘）において、部分的な活用を実施した（簡易型ICT活用工事）",null,null,null,null,null,null,null,null,null,null,null,null,null,null,null,null,null,null,null,null,null,null,false]
[null,null,"付帯構造物設置工において、全面的な活用を実施した（ICT活用工事）",null,null,null,null,null,null,null,null,null,null,null,null,null,null,null,null,null,null,null,null,null,null,false]
[null,null,"付帯構造物設置工において、部分的な活用を実施した（簡易型ICT活用工事）",null,null,null,null,null,null,null,null,null,null,null,null,null,null,null,null,null,"→問３へ",null,null,null,null,false]
[null,null,"法面工において、全面的な活用を実施した（ICT活用工事）",null,null,null,null,null,null,null,null,null,null,null,null,null,null,null,null,null,null,null,null,null,null,false]
[null,null,"法面工において、部分的な活用を実施した（簡易型ICT活用工事）",null,null,null,null,null,null,null,null,null,null,null,null,null,null,null,null,null,null,null,null,null,null,false]
[null,null,"地盤改良工において、全面的な活用を実施した（ICT活用工事）",null,null,null,null,null,null,null,null,null,null,null,null,null,null,null,null,null,null,null,null,null,null,false]
[null,null,"地盤改良工において、部分的な活用を実施した（簡易型ICT活用工事）",null,null,null,null,null,null,null,null,null,null,null,null,null,null,null,null,null,null,null,null,null,null,false]
[null,null,"舗装工（修繕工）において、全面的な活用を実施した（ICT活用工事）",null,null,null,null,null,null,null,null,null,null,null,null,null,null,null,null,null,null,null,null,null,null,false]
[null,null,"舗装工（修繕工）において、部分的な活用を実施した（簡易型ICT活用工事）",null,null,null,null,null,null,null,null,null,null,null,null,null,null,null,null,null,null,null,null,null,null,false]
[null,null,"構造物工（橋脚・橋台）において、全面的な活用を実施した（ICT活用工事）",null,null,null,null,null,null,null,null,null,null,null,null,null,null,null,null,null,null,null,null,null,null,false]
[null,null,"構造物工（橋脚・橋台）において、部分的な活用を実施した（簡易型ICT活用工事）",null,null,null,null,null,null,null,null,null,null,null,null,null,null,null,null,null,null,null,null,null,null,false]
[null,null,"その他工種において、全面的な活用を実施した（ICT活用工事）",null,null,null,null,null,null,null,null,null,null,null,null,null,null,null,null,null,null,null,null,null,null,false]
[null,null,"その他工種において、部分的な活用を実施した（簡易型ICT活用工事）",null,null,null,null,null,null,null,null,null,null,null,null,null,null,null,null,null,null,null,null,null,null,false]
[null,null,"ICT活用工事を希望しなかった、又はできなかった",null,null,null,null,null,null,null,null,null,null,"→問２へ",null,null,null,null,null,null,null,null,null,null,null,false]
[null,null,"※「その他工種」においてICTを活用した場合は、活用工種を記入してください。",null,null,null,null,null,null,null,null,null,null,null,null,null,null,null,null,null,null,null,null,null,null,{"$f":"+C54","v":0}]
[]
[]
[]
[null,{"$f":"IF(AA57=0,\"未回答\",IF(AND(Z50=FALSE,Z51=FALSE),\"\",IF(C54=\"\",\"エラー！！※その他活用工種を記入してください※\",\"\")))","v":"未回答"},null,null,null,null,null,null,null,null,null,null,null,null,null,null,null,null,null,null,null,null,null,null,{"$f":"+IF(B57=\"\",\"回答済\",\"未回答あり\")","v":"未回答あり"},null,{"$f":"COUNTIF(Z32:Z52,TRUE)","v":0}]
["問２",null,"今回、ICT活用工事を希望しなかった、又はできなかった理由について、次から選択してください。（３つまで回答可）"]
[]
[null,null,"当工事現場ではICT活用が効果的でないと判断したため",null,null,null,null,null,null,null,null,null,null,null,null,null,null,null,null,null,null,null,null,null,null,false]
[null,null,"工事の採算性に不安があるため",null,null,null,null,null,null,null,null,null,null,null,null,null,null,null,null,null,null,null,null,null,null,false]
[null,null,"ICT機器やICT重機に係るコストが高いため",null,null,null,null,null,null,null,null,null,null,null,null,null,null,null,null,null,null,null,null,null,null,false]
[null,null,"ICT機器やICT重機が不足し、調達できなかったため",null,null,null,null,null,null,null,null,null,null,null,null,null,null,null,null,null,null,null,null,null,null,false]
[null,null,"ICT活用に係る部分を外注するためコストが高くなる",null,null,null,null,null,null,null,null,null,null,null,null,null,null,null,null,null,null,null,null,null,null,false]
[null,null,"興味はあるが、ICT活用技術に関する知識（活用方法や施工管理基準など）が不足しているため",null,null,null,null,null,null,null,null,null,null,null,null,null,null,null,null,null,null,null,null,null,null,false]
[null,null,"ICT活用技術の生産性向上の効果が分からない",null,null,null,null,null,null,null,null,null,null,null,null,null,null,null,null,null,null,null,null,null,null,false]
[null,null,"ICT活用技術について、社内の理解が得られない",null,null,null,null,null,null,null,null,null,null,null,null,null,null,null,null,null,null,null,null,null,null,false]
[null,null,"ICT活用技術に興味がない",null,null,null,null,null,null,null,null,null,null,null,null,null,null,null,null,null,null,null,null,null,null,false]
[null,null,"発注者の都合によりできなかった",null,null,null,null,null,null,null,null,null,null,null,null,null,null,null,null,null,null,null,null,null,null,false]
[null,null,"その他",null,null,null,null,null,null,null,null,null,null,null,null,null,null,null,null,null,null,null,null,null,null,true]
[null,null,"※「その他」を選択した場合は、ICT活用工事を希望しなかった理由を記入してください。",null,null,null,null,null,null,null,null,null,null,null,null,null,null,null,null,null,null,null,null,null,null,{"$f":"+C72","v":0},{"$f":"COUNTIF(Z60:Z70,TRUE)","v":1}]
[]
[]
[]
[null,{"$f":"IF($Z$52=TRUE,\"回答不要\",IF(AA71=0,\"未回答\",IF(AA71>=4,\"エラー！！※選択は３つまで※\",IF(Z70=FALSE,\"アンケート終了\",IF(C72=\"\",\"エラー！！※その他の理由を記入してください※\",\"アンケート終了\")))))","v":"エラー！！※その他の理由を記入してください※"},null,null,null,null,null,null,null,null,null,null,null,null,null,null,null,null,null,null,null,null,null,null,{"$f":"+IF(B75=\"アンケート終了\",\"回答済\",IF(B75=\"回答不要\",\"回答済\",\"未回答あり\"))","v":"未回答あり"}]
["問３",null,"今回工事について、ICT導入によって感じた効果をお答えください。"]
["　問３-１",null,null,"３次元起工測量（ICT施工、従来施工双方に必要となる基準点測量は除く）"]
[null,"(1)　従来施工での所要時間　（当該工事と同等の数量・条件を想定し、ご記入ください）"]
[null,null,"※計測～数量算出までの内業、外業の合計"]
[null,null,"従来施工での所要日数（日）",null,null,null,null,null,null,null,null,null,null,null,null,null,null,null,null,null,null,null,null,null,null,{"$f":"+K80","v":0}]
[null,null,"従来施工での延べ作業人員（人・日）",null,null,null,null,null,null,null,null,null,null,null,null,null,null,null,null,null,null,null,null,null,null,{"$f":"+K81","v":0}]
[null,null,"従来施工での日当り所要人員（人）",null,null,null,null,null,null,null,{"$f":"IF(K81=\"\",\"入力待ち\",IF(K80=\"\",\"入力待ち\",ROUND(K81/K80,1)))","v":"入力待ち"},null,null," ※自動算出"]
[null,{"$f":"IF($Z$52=TRUE,\"回答不要\",IF(K82=\"入力待ち\",\"未回答\",\"\"))","v":"未回答"},null,null,null,null,null,null,null,null,null,null,null,null,null,null,null,null,null,null,null,null,null,null,{"$f":"+IF(B83=\"\",\"回答済\",IF(B83=\"回答不要\",\"回答済\",\"未回答あり\"))","v":"未回答あり"}]
[null,"(2)　ICT施工での所要時間"]
[null,null,"※計測～数量算出までの内業、外業の合計"]
[null,null,"※外注の場合は、実施者に延べ作業人員及び所要日数を確認してください。"]
[null,null,"ICT施工での所要日数（日）",null,null,null,null,null,null,null,null,null,null,null,null,null,null,null,null,null,null,null,null,null,null,{"$f":"+K87","v":0}]
[null,null,"ICT施工での延べ作業人員（人・日）",null,null,null,null,null,null,null,null,null,null,null,null,null,null,null,null,null,null,null,null,null,null,{"$f":"+K88","v":0}]
[null,null,"ICT施工での日当り所要人員（人）",null,null,null,null,null,null,null,{"$f":"IF(K87=\"\",\"入力待ち\",IF(K88=\"\",\"入力待ち\",IF(K87=\"\",\"入力待ち\",ROUND(K88/K87,1))))","v":"入力待ち"},null,null," ※自動算出",null,null,null,null,null,null,null,null,null,null,null,{"$f":"+K89","v":"入力待ち"}]
[null,{"$f":"IF($Z$52=TRUE,\"回答不要\",IF(K89=\"入力待ち\",\"未回答\",\"\"))","v":"未回答"},null,null,null,null,null,null,null,null,null,null,null,null,null,null,null,null,null,null,null,null,null,null,{"$f":"+IF(B90=\"\",\"回答済\",IF(B90=\"回答不要\",\"回答済\",\"未回答あり\"))","v":"未回答あり"}]
[null,"(3)　ICT施工による満足度について、次から選択してください。また、その理由をご記入ください。"]
[null,null,null,"期待した以上の効果が得られた",null,null,null,null,null,null,null,null,null,null,null,null,null,null,null,null,null,null,null,null,null,false]
[null,null,null,"期待した通りの効果が得られた",null,null,null,null,null,null,null,null,null,null,null,null,null,null,null,null,null,null,null,null,null,false]
[null,null,null,"期待したほどは効果が得られなかった",null,null,null,null,null,null,null,null,null,null,null,null,null,null,null,null,null,null,null,null,null,false]
[null,null,null,"期待した効果が全く得られなかった",null,null,null,null,null,null,null,null,null,null,null,null,null,null,null,null,null,null,null,null,null,false]
[null,null,null,"※上記を選択した理由を記入してください。",null,null,null,null,null,null,null,null,null,null,null,null,null,null,null,null,null,null,null,null,null,{"$f":"+D97","v":0},{"$f":"COUNTIF(Z92:Z95,TRUE)","v":0}]
[]
[]
[]
[null,{"$f":"IF($Z$52=TRUE,\"回答不要\",IF(AA96=0,\"未回答\",IF(AA96>=2,\"エラー！！※選択は１つまで※\",IF(D97=\"\",\"未回答※理由を記入してください※\",\"\"))))","v":"未回答"},null,null,null,null,null,null,null,null,null,null,null,null,null,null,null,null,null,null,null,null,null,null,"未回答あり"]
["　問３-２",null,null,"３次元設計データ作成"]
[null,"(1)　従来施工での所要時間（当該工事と同等の数量・条件を想定し，、ご記入ください）"]
[null,null,"従来施工：起工測量（横断計測）結果の設計横断面図上への図化"]
[null,null,"　　　　　　 丁張設置のための準備計算（TS出来形管理の場合は基本設計データ作成時間）"]
[null,null,"従来施工での所要日数（日）",null,null,null,null,null,null,null,null,null,null,null,null,null,null,null,null,null,null,null,null,null,null,{"$f":"+K105","v":0}]
[null,null,"従来施工での延べ作業人員（人・日）",null,null,null,null,null,null,null,null,null,null,null,null,null,null,null,null,null,null,null,null,null,null,{"$f":"+K106","v":0}]
[null,null,"従来施工での日当り所要人員（人）",null,null,null,null,null,null,null,{"$f":"IF(K106=\"\",\"入力待ち\",IF(K105=\"\",\"入力待ち\",ROUND(K106/K105,1)))","v":"入力待ち"},null,null," ※自動算出",null,null,null,null,null,null,null,null,null,null,null,{"$f":"+K107","v":"入力待ち"}]
[null,{"$f":"IF($Z$52=TRUE,\"回答不要\",IF(K107=\"入力待ち\",\"未回答\",\"\"))","v":"未回答"},null,null,null,null,null,null,null,null,null,null,null,null,null,null,null,null,null,null,null,null,null,null,"未回答あり"]
[null,"(2)　ICT施工での所要時間"]
[null,null,"ICT施工：設計図書を基に３次元設計データを作成（追加・修正含む）"]
[null,null,"　　　　　　３次元起工測量結果と３次元設計データの重ね合せ（追加・修正含む）"]
[null,null,"ICT施工での所要日数（日）",null,null,null,null,null,null,null,null,null,null,null,null,null,null,null,null,null,null,null,null,null,null,{"$f":"+K112","v":0}]
[null,null,"ICT施工での延べ作業人員（人・日）",null,null,null,null,null,null,null,null,null,null,null,null,null,null,null,null,null,null,null,null,null,null,{"$f":"+K113","v":0}]
[null,null,"ICT施工での日当り所要人員（人）",null,null,null,null,null,null,null,{"$f":"IF(K113=\"\",\"入力待ち\",IF(K112=\"\",\"入力待ち\",ROUND(K113/K112,1)))","v":"入力待ち"},null,null," ※自動算出",null,null,null,null,null,null,null,null,null,null,null,{"$f":"+K114","v":"入力待ち"}]
[null,{"$f":"IF($Z$52=TRUE,\"回答不要\",IF(K114=\"入力待ち\",\"未回答\",\"\"))","v":"未回答"},null,null,null,null,null,null,null,null,null,null,null,null,null,null,null,null,null,null,null,null,null,null,"未回答あり"]
[null,"(3)　ICT施工による満足度について、次から選択してください。また、その理由をご記入ください。"]
[null,null,null,"期待した以上の効果が得られた",null,null,null,null,null,null,null,null,null,null,null,null,null,null,null,null,null,null,null,null,null,false]
[null,null,null,"期待した通りの効果が得られた",null,null,null,null,null,null,null,null,null,null,null,null,null,null,null,null,null,null,null,null,null,false]
[null,null,null,"期待したほどは効果が得られなかった",null,null,null,null,null,null,null,null,null,null,null,null,null,null,null,null,null,null,null,null,null,false]
[null,null,null,"期待した効果が全く得られなかった",null,null,null,null,null,null,null,null,null,null,null,null,null,null,null,null,null,null,null,null,null,false]
[null,null,null,"※上記を選択した理由を記入してください。",null,null,null,null,null,null,null,null,null,null,null,null,null,null,null,null,null,null,null,null,null,{"$f":"+D122","v":0},{"$f":"COUNTIF(Z117:Z120,TRUE)","v":0}]
[]
[]
[]
[null,{"$f":"IF($Z$52=TRUE,\"回答不要\",IF(AA121=0,\"未回答\",IF(AA121>=2,\"エラー！！※選択は１つまで※\",IF(D122=\"\",\"未回答※理由を記入してください※\",\"\"))))","v":"未回答"},null,null,null,null,null,null,null,null,null,null,null,null,null,null,null,null,null,null,null,null,null,null,"未回答あり"]
["　問３-３",null,null,"ICT建設機械による施工"]
[null,"(1)　従来施工での所要時間（当該工事と同等の数量・条件を想定し、ご記入ください）"]
[null,null,"従来施工：主たる作業に関わる従来建機の施工"]
[null,null,"　　　　　　 従来施工での丁張設置"]
[null,null,"従来施工での所要日数（日）",null,null,null,null,null,null,null,null,null,null,null,null,null,null,null,null,null,null,null,null,null,null,{"$f":"+K130","v":0}]
[null,null,"従来施工での延べ作業人員（人・日）",null,null,null,null,null,null,null,null,null,null,null,null,null,null,null,null,null,null,null,null,null,null,{"$f":"+K131","v":0}]
[null,null,"従来施工での日当り所要人員（人）",null,null,null,null,null,null,null,{"$f":"IF(K131=\"\",\"入力待ち\",IF(K130=\"\",\"入力待ち\",ROUND(K131/K130,1)))","v":"入力待ち"},null,null," ※自動算出",null,null,null,null,null,null,null,null,null,null,null,{"$f":"+K132","v":"入力待ち"}]
[null,{"$f":"IF($Z$52=TRUE,\"回答不要\",IF(K132=\"入力待ち\",\"未回答\",\"\"))","v":"未回答"},null,null,null,null,null,null,null,null,null,null,null,null,null,null,null,null,null,null,null,null,null,null,"未回答あり"]
[null,"(2)　ICT施工での所要時間"]
[null,null,"ICT施工：主たる作業に関わるICT建機の施工"]
[null,null,"　　　　　　 主たる作業に関わる従来建機の施工（ICT建機と組み合わせて使用する建機）"]
[null,null,"　　　　　　 ICT施工でのキャリブレーション、ローカライゼーションなど"]
[null,null,"ICT施工での所要日数（日）",null,null,null,null,null,null,null,null,null,null,null,null,null,null,null,null,null,null,null,null,null,null,{"$f":"+K138","v":0}]
[null,null,"ICT施工での延べ作業人員（人・日）",null,null,null,null,null,null,null,null,null,null,null,null,null,null,null,null,null,null,null,null,null,null,{"$f":"+K139","v":0}]
[null,null,"ICT施工での日当り所要人員（人）",null,null,null,null,null,null,null,{"$f":"IF(K139=\"\",\"入力待ち\",IF(K138=\"\",\"入力待ち\",ROUND(K139/K138,1)))","v":"入力待ち"},null,null," ※自動算出",null,null,null,null,null,null,null,null,null,null,null,{"$f":"+K140","v":"入力待ち"}]
[null,{"$f":"IF($Z$52=TRUE,\"回答不要\",IF(K140=\"入力待ち\",\"未回答\",\"\"))","v":"未回答"},null,null,null,null,null,null,null,null,null,null,null,null,null,null,null,null,null,null,null,null,null,null,"未回答あり"]
[null,"(3)　ICT施工による満足度について、次から選択してください。"]
[null,null,null,"期待した以上の効果が得られた",null,null,null,null,null,null,null,null,null,null,null,null,null,null,null,null,null,null,null,null,null,false]
[null,null,null,"期待した通りの効果が得られた",null,null,null,null,null,null,null,null,null,null,null,null,null,null,null,null,null,null,null,null,null,false]
[null,null,null,"期待したほどは効果が得られなかった",null,null,null,null,null,null,null,null,null,null,null,null,null,null,null,null,null,null,null,null,null,false]
[null,null,null,"期待した効果が全く得られなかった",null,null,null,null,null,null,null,null,null,null,null,null,null,null,null,null,null,null,null,null,null,false]
[null,null,null,"※上記を選択した理由を記入してください。",null,null,null,null,null,null,null,null,null,null,null,null,null,null,null,null,null,null,null,null,null,{"$f":"+D148","v":0},{"$f":"COUNTIF(Z143:Z146,TRUE)","v":0}]
[]
[]
[]
[null,{"$f":"IF($Z$52=TRUE,\"回答不要\",IF(AA147=0,\"未回答\",IF(AA147>=2,\"エラー！！※選択は１つまで※\",IF(D148=\"\",\"未回答※理由を記入してください※\",\"\"))))","v":"未回答"},null,null,null,null,null,null,null,null,null,null,null,null,null,null,null,null,null,null,null,null,null,null,{"$f":"+IF(B151=\"\",\"回答済\",IF(B151=\"回答不要\",\"回答済\",\"未回答あり\"))","v":"未回答あり"}]
["　問３-４",null,null,"３次元出来形管理等の施工管理\n（出来形管理資料作成にかかる全ての作業を対象としてご記入ください）"]
[]
[null,"(1)　従来施工での所要時間（当該工事と同等の数量・条件を想定し、ご記入ください）"]
[null,null,"従来施工での所要日数（日）",null,null,null,null,null,null,null,null,null,null,null,null,null,null,null,null,null,null,null,null,null,null,{"$f":"+K155","v":0}]
[null,null,"従来施工での延べ作業人員（人・日）",null,null,null,null,null,null,null,null,null,null,null,null,null,null,null,null,null,null,null,null,null,null,{"$f":"+K156","v":0}]
[null,null,"従来施工での日当り所要人員（人）",null,null,null,null,null,null,null,{"$f":"IF(K156=\"\",\"入力待ち\",IF(K155=\"\",\"入力待ち\",ROUND(K156/K155,1)))","v":"入力待ち"},null,null," ※自動算出",null,null,null,null,null,null,null,null,null,null,null,{"$f":"+K157","v":"入力待ち"}]
[null,{"$f":"IF($Z$52=TRUE,\"回答不要\",IF(K157=\"入力待ち\",\"未回答\",\"\"))","v":"未回答"},null,null,null,null,null,null,null,null,null,null,null,null,null,null,null,null,null,null,null,null,null,null,"未回答あり"]
[null,"(2)　ICT施工での所要時間"]
[null,null,"ICT施工での所要日数（日）",null,null,null,null,null,null,null,null,null,null,null,null,null,null,null,null,null,null,null,null,null,null,{"$f":"+K160","v":0}]
[null,null,"ICT施工での延べ作業人員（人・日）",null,null,null,null,null,null,null,null,null,null,null,null,null,null,null,null,null,null,null,null,null,null,{"$f":"+K161","v":0}]
[null,null,"ICT施工での日当り所要人員（人）",null,null,null,null,null,null,null,{"$f":"IF(K161=\"\",\"入力待ち\",IF(K160=\"\",\"入力待ち\",ROUND(K161/K160,1)))","v":"入力待ち"},null,null," ※自動算出",null,null,null,null,null,null,null,null,null,null,null,{"$f":"+K162","v":"入力待ち"}]
[null,{"$f":"IF($Z$52=TRUE,\"回答不要\",IF(K162=\"入力待ち\",\"未回答\",\"\"))","v":"未回答"},null,null,null,null,null,null,null,null,null,null,null,null,null,null,null,null,null,null,null,null,null,null,"未回答あり"]
[null,"(3)　ICT施工による満足度について、次から選択してください。"]
[null,null,null,"期待した以上の効果が得られた",null,null,null,null,null,null,null,null,null,null,null,null,null,null,null,null,null,null,null,null,null,false]
[null,null,null,"期待した通りの効果が得られた",null,null,null,null,null,null,null,null,null,null,null,null,null,null,null,null,null,null,null,null,null,false]
[null,null,null,"期待したほどは効果が得られなかった",null,null,null,null,null,null,null,null,null,null,null,null,null,null,null,null,null,null,null,null,null,false]
[null,null,null,"期待した効果が全く得られなかった",null,null,null,null,null,null,null,null,null,null,null,null,null,null,null,null,null,null,null,null,null,false]
[null,null,null,"※上記を選択した理由を記入してください。",null,null,null,null,null,null,null,null,null,null,null,null,null,null,null,null,null,null,null,null,null,{"$f":"+D170","v":0},{"$f":"COUNTIF(Z165:Z168,TRUE)","v":0}]
[]
[]
[]
[null,{"$f":"IF($Z$52=TRUE,\"回答不要\",IF(AA169=0,\"未回答\",IF(AA169>=2,\"エラー！！※選択は１つまで※\",IF(D170=\"\",\"未回答※理由を記入してください※\",\"\"))))","v":"未回答"},null,null,null,null,null,null,null,null,null,null,null,null,null,null,null,null,null,null,null,null,null,null,"未回答あり"]
["　問３-５",null,null,"３次元データの納品"]
[null,"(1)　従来施工での所要時間（当該工事と同等の数量・条件を想定し、ご記入ください）"]
[null,null,"従来施工での所要日数（日）",null,null,null,null,null,null,null,null,null,null,null,null,null,null,null,null,null,null,null,null,null,null,{"$f":"+K176","v":0}]
[null,null,"従来施工での延べ作業人員（人・日）",null,null,null,null,null,null,null,null,null,null,null,null,null,null,null,null,null,null,null,null,null,null,{"$f":"+K177","v":0}]
[null,null,"従来施工での日当り所要人員（人）",null,null,null,null,null,null,null,{"$f":"IF(K177=\"\",\"入力待ち\",IF(K176=\"\",\"入力待ち\",ROUND(K177/K176,1)))","v":"入力待ち"},null,null," ※自動算出",null,null,null,null,null,null,null,null,null,null,null,{"$f":"+K178","v":"入力待ち"}]
[null,{"$f":"IF($Z$52=TRUE,\"回答不要\",IF(K178=\"入力待ち\",\"未回答\",\"\"))","v":"未回答"},null,null,null,null,null,null,null,null,null,null,null,null,null,null,null,null,null,null,null,null,null,null,"未回答あり"]
[null,"(2)　ICT施工での所要時間"]
[null,null,"ICT施工での所要日数（日）",null,null,null,null,null,null,null,null,null,null,null,null,null,null,null,null,null,null,null,null,null,null,{"$f":"+K181","v":0}]
[null,null,"ICT施工での延べ作業人員（人・日）",null,null,null,null,null,null,null,null,null,null,null,null,null,null,null,null,null,null,null,null,null,null,{"$f":"+K182","v":0}]
[null,null,"ICT施工での日当り所要人員（人）",null,null,null,null,null,null,null,{"$f":"IF(K182=\"\",\"入力待ち\",IF(K181=\"\",\"入力待ち\",ROUND(K182/K181,1)))","v":"入力待ち"},null,null," ※自動算出",null,null,null,null,null,null,null,null,null,null,null,{"$f":"+K183","v":"入力待ち"}]
[null,{"$f":"IF($Z$52=TRUE,\"回答不要\",IF(K183=\"入力待ち\",\"未回答\",\"\"))","v":"未回答"},null,null,null,null,null,null,null,null,null,null,null,null,null,null,null,null,null,null,null,null,null,null,"未回答あり"]
[null,"(3)　ICT施工による満足度について、次から選択してください。"]
[null,null,null,"期待した以上の効果が得られた",null,null,null,null,null,null,null,null,null,null,null,null,null,null,null,null,null,null,null,null,null,false]
[null,null,null,"期待した通りの効果が得られた",null,null,null,null,null,null,null,null,null,null,null,null,null,null,null,null,null,null,null,null,null,false]
[null,null,null,"期待したほどは効果が得られなかった",null,null,null,null,null,null,null,null,null,null,null,null,null,null,null,null,null,null,null,null,null,false]
[null,null,null,"期待した効果が全く得られなかった",null,null,null,null,null,null,null,null,null,null,null,null,null,null,null,null,null,null,null,null,null,false]
[null,null,null,"※上記を選択した理由を記入してください。",null,null,null,null,null,null,null,null,null,null,null,null,null,null,null,null,null,null,null,null,null,{"$f":"+D191","v":0},{"$f":"COUNTIF(Z186:Z189,TRUE)","v":0}]
[]
[]
[]
[null,{"$f":"IF($Z$52=TRUE,\"回答不要\",IF(AA190=0,\"未回答\",IF(AA190>=2,\"エラー！！※選択は１つまで※\",IF(D191=\"\",\"未回答※理由を記入してください※\",\"\"))))","v":"未回答"},null,null,null,null,null,null,null,null,null,null,null,null,null,null,null,null,null,null,null,null,null,null,"未回答あり"]
["　問３-６",null,null,"ICT活用効果の確認"]
[null,"３次元起工測量～３次元データの納品までの入力いただいたデータから、ICT施工と従来施工の延べ作業人員の合計は次のグラフとなります。誤りがないか確認してください。"]
[]
[]
[]
[]
[]
[]
[]
[]
[]
[]
[null,null,null,"確認した",null,null,null,null,null,null,null,null,null,null,null,null,null,null,null,null,null,null,null,null,null,false]
[null,{"$f":"IF($Z$52=TRUE,\"回答不要\",IF(AA208=0,\"未回答\",IF(AA208>=2,\"エラー！！※選択は１つまで※\",\"\")))","v":"未回答"},null,null,null,null,null,null,null,null,null,null,null,null,null,null,null,null,null,null,null,null,null,null,"未回答あり",null,{"$f":"COUNTIF(Z207,TRUE)","v":0}]
["　問３-７",null,null,"今回のICT活用工事を実施しメリットと感じた項目について次の番号から選択してください。\n（複数選択可）"]
[]
[null,null,null,"作業効率の向上",null,null,null,null,null,null,null,null,null,null,null,null,null,null,null,null,null,null,null,null,null,false]
[null,null,null,"コスト縮減",null,null,null,null,null,null,null,null,null,null,null,null,null,null,null,null,null,null,null,null,null,false]
[null,null,null,"工事成績評定の加点",null,null,null,null,null,null,null,null,null,null,null,null,null,null,null,null,null,null,null,null,null,false]
[null,null,null,"優良建設工事の表彰要件の加点",null,null,null,null,null,null,null,null,null,null,null,null,null,null,null,null,null,null,null,null,null,false]
[null,null,null,"建設工事に係る総合評価落札方式における加点",null,null,null,null,null,null,null,null,null,null,null,null,null,null,null,null,null,null,null,null,null,false]
[null,null,null,"ICT活用の経験・人材育成",null,null,null,null,null,null,null,null,null,null,null,null,null,null,null,null,null,null,null,null,null,false]
[null,null,null,"安全性の向上",null,null,null,null,null,null,null,null,null,null,null,null,null,null,null,null,null,null,null,null,null,false]
[null,null,null,"若手技術者等の経験の浅い技術者でも一定品質の施工が可能（熟練者不足への対応）",null,null,null,null,null,null,null,null,null,null,null,null,null,null,null,null,null,null,null,null,null,false]
[null,null,null,"その他",null,null,null,null,null,null,null,null,null,null,null,null,null,null,null,null,null,null,null,null,null,false]
[null,null,null,"※「その他」を選択した場合は、メリットと感じた内容を記入してください。",null,null,null,null,null,null,null,null,null,null,null,null,null,null,null,null,null,null,null,null,null,{"$f":"+D221","v":0},{"$f":"COUNTIF(Z211:Z219,TRUE)","v":0}]
[]
[]
[]
[null,{"$f":"IF($Z$52=TRUE,\"回答不要\",IF(AA220=0,\"未回答\",IF(Z219=FALSE,\"\",IF(D221=\"\",\"エラー！！※その他の理由を記入してください※\",\"\"))))","v":"未回答"},null,null,null,null,null,null,null,null,null,null,null,null,null,null,null,null,null,null,null,null,null,null,{"$f":"+IF(B224=\"\",\"回答済\",IF(B224=\"回答不要\",\"回答済\",\"未回答あり\"))","v":"未回答あり"}]
["問４",null,"今後、ICT活用工事を積極的に取り組みたいと考えていますか。次から選択してください。"]
[null,null,"考えている",null,null,null,null,null,null,null,null,null,null,null,null,null,null,null,null,null,null,null,null,null,null,false]
[null,null,"考えていない",null,null,null,null,null,null,null,null,null,null,null,null,null,null,null,null,null,null,null,null,null,null,false]
[null,null,"今後検討する",null,null,null,null,null,null,null,null,null,null,null,null,null,null,null,null,null,null,null,null,null,null,false]
[null,{"$f":"IF($Z$52=TRUE,\"回答不要\",IF(AA229=0,\"未回答\",IF(AA229>=2,\"エラー！！※選択は１つまで※\",\"\")))","v":"未回答"},null,null,null,null,null,null,null,null,null,null,null,null,null,null,null,null,null,null,null,null,null,null,"未回答あり",null,{"$f":"COUNTIF(Z226:Z228,TRUE)","v":0}]
["問５",null,"今後、ICT建設機械（機器）の購入を考えていますか。次から選択してください。\n（購入には、従来建設機械を後付け等でICT建設機械に改良する場合も含む）"]
[]
[null,null,"購入を考えている",null,null,null,null,null,null,null,null,null,null,null,null,null,null,null,null,null,null,null,null,null,null,false]
[null,null,"購入を考えていない　（ICT活用を行う場合、レンタル 又は 下請（建設会社） を利用する）",null,null,null,null,null,null,null,null,null,null,null,null,null,null,null,null,null,null,null,null,null,null,false]
[null,null,null,"※「購入を考えている」を選択した場合は、検討されているICT建設機械（機器）を記入してください。\n　（例：MGバックホウ、MCバックホウ、後付けMGバックホウ、写真測量用UAVなど）",null,null,null,null,null,null,null,null,null,null,null,null,null,null,null,null,null,null,null,null,null,{"$f":"+D236","v":0}]
[]
[]
[]
[]
[null,{"$f":"IF($Z$52=TRUE,\"回答不要\",IF(AA239=0,\"未回答\",IF(AA239>=2,\"エラー！！※選択は１つまで※\",IF(Z232=FALSE,\"\",IF(D236=\"\",\"エラー！！※その他の理由を記入してください※\",\"\")))))","v":"未回答"},null,null,null,null,null,null,null,null,null,null,null,null,null,null,null,null,null,null,null,null,null,null,"未回答あり",null,{"$f":"COUNTIF(Z232:Z233,TRUE)","v":0}]
["問６",null,"ICT土工を実施する場合、どのくらいの土工量があれば妥当と考えますか。次から選択してください。なお、掘削及び盛土の合計量としてください。"]
[]
[null,null,"実施していないため分からない",null,null,null,null,null,null,null,null,null,null,null,null,null,null,null,null,null,null,null,null,null,null,false]
[null,null,"土工量500ｍ3未満 （施工量は関係ない）",null,null,null,null,null,null,null,null,null,null,null,null,null,null,null,null,null,null,null,null,null,null,false]
[null,null,"土工量500ｍ3以上",null,null,null,null,null,null,null,null,null,null,null,null,null,null,null,null,null,null,null,null,null,null,true]
[null,null,"土工量1,000ｍ3以上",null,null,null,null,null,null,null,null,null,null,null,null,null,null,null,null,null,null,null,null,null,null,false]
[null,null,"土工量3,000ｍ3以上",null,null,null,null,null,null,null,null,null,null,null,null,null,null,null,null,null,null,null,null,null,null,false]
[null,null,"土工量5,000ｍ3以上",null,null,null,null,null,null,null,null,null,null,null,null,null,null,null,null,null,null,null,null,null,null,false]
[null,null,"土工量10,000ｍ3以上",null,null,null,null,null,null,null,null,null,null,null,null,null,null,null,null,null,null,null,null,null,null,false]
[null,{"$f":"IF($Z$52=TRUE,\"回答不要\",IF(AA249=0,\"未回答\",IF(AA249>=2,\"エラー！！※選択は１つまで※\",\"\")))","v":""},null,null,null,null,null,null,null,null,null,null,null,null,null,null,null,null,null,null,null,null,null,null,"回答済",null,{"$f":"COUNTIF(Z242:Z248,TRUE)","v":1}]
["問７",null,"ICT舗装工を実施する場合、どのくらいの舗装面積があれば妥当と考えますか。次から選択してください。"]
[]
[null,null,"実施していないため分からない",null,null,null,null,null,null,null,null,null,null,null,null,null,null,null,null,null,null,null,null,null,null,false]
[null,null,"舗装面積500ｍ2未満 （施工量は関係ない）",null,null,null,null,null,null,null,null,null,null,null,null,null,null,null,null,null,null,null,null,null,null,false]
[null,null,"舗装面積500ｍ2以上",null,null,null,null,null,null,null,null,null,null,null,null,null,null,null,null,null,null,null,null,null,null,false]
[null,null,"舗装面積1,000ｍ2以上",null,null,null,null,null,null,null,null,null,null,null,null,null,null,null,null,null,null,null,null,null,null,false]
[null,null,"舗装面積3,000ｍ2以上",null,null,null,null,null,null,null,null,null,null,null,null,null,null,null,null,null,null,null,null,null,null,false]
[null,null,"舗装面積5,000ｍ2以上",null,null,null,null,null,null,null,null,null,null,null,null,null,null,null,null,null,null,null,null,null,null,false]
[null,null,"舗装面積10,000ｍ2以上",null,null,null,null,null,null,null,null,null,null,null,null,null,null,null,null,null,null,null,null,null,null,false]
[null,{"$f":"IF($Z$52=TRUE,\"回答不要\",IF(AA259=0,\"未回答\",IF(AA259>=2,\"エラー！！※選択は１つまで※\",\"\")))","v":"未回答"},null,null,null,null,null,null,null,null,null,null,null,null,null,null,null,null,null,null,null,null,null,null,{"$f":"+IF(B259=\"\",\"回答済\",IF(B259=\"回答不要\",\"回答済\",\"未回答あり\"))","v":"未回答あり"},null,{"$f":"COUNTIF(Z252:Z258,TRUE)","v":0}]
["問８",null,"ICT河川浚渫を実施する場合、どのくらいの土工量があれば妥当と考えますか。次から選択してください。"]
[]
[null,null,"実施していないため分からない",null,null,null,null,null,null,null,null,null,null,null,null,null,null,null,null,null,null,null,null,null,null,false]
[null,null,"土工量500ｍ3未満 （施工量は関係ない）",null,null,null,null,null,null,null,null,null,null,null,null,null,null,null,null,null,null,null,null,null,null,false]
[null,null,"土工量500ｍ3以上",null,null,null,null,null,null,null,null,null,null,null,null,null,null,null,null,null,null,null,null,null,null,false]
[null,null,"土工量1,000ｍ3以上",null,null,null,null,null,null,null,null,null,null,null,null,null,null,null,null,null,null,null,null,null,null,false]
[null,null,"土工量3,000ｍ3以上",null,null,null,null,null,null,null,null,null,null,null,null,null,null,null,null,null,null,null,null,null,null,false]
[null,null,"土工量5,000ｍ3以上",null,null,null,null,null,null,null,null,null,null,null,null,null,null,null,null,null,null,null,null,null,null,false]
[null,null,"土工量10,000ｍ3以上",null,null,null,null,null,null,null,null,null,null,null,null,null,null,null,null,null,null,null,null,null,null,false]
[null,{"$f":"IF($Z$52=TRUE,\"回答不要\",IF(AA269=0,\"未回答\",IF(AA269>=2,\"エラー！！※選択は１つまで※\",\"\")))","v":"未回答"},null,null,null,null,null,null,null,null,null,null,null,null,null,null,null,null,null,null,null,null,null,null,{"$f":"+IF(B269=\"\",\"回答済\",IF(B269=\"回答不要\",\"回答済\",\"未回答あり\"))","v":"未回答あり"},null,{"$f":"COUNTIF(Z262:Z268,TRUE)","v":0}]
["問９",null,"ICT舗装工（修繕工）を実施する場合、どのくらいの舗装面積があれば妥当と考えますか。次から選択してください。"]
[]
[null,null,"実施していないため分からない",null,null,null,null,null,null,null,null,null,null,null,null,null,null,null,null,null,null,null,null,null,null,false]
[null,null,"舗装面積500ｍ2未満 （施工量は関係ない）",null,null,null,null,null,null,null,null,null,null,null,null,null,null,null,null,null,null,null,null,null,null,false]
[null,null,"舗装面積500ｍ2以上",null,null,null,null,null,null,null,null,null,null,null,null,null,null,null,null,null,null,null,null,null,null,false]
[null,null,"舗装面積1,000ｍ2以上",null,null,null,null,null,null,null,null,null,null,null,null,null,null,null,null,null,null,null,null,null,null,false]
[null,null,"舗装面積3,000ｍ2以上",null,null,null,null,null,null,null,null,null,null,null,null,null,null,null,null,null,null,null,null,null,null,false]
[null,null,"舗装面積5,000ｍ2以上",null,null,null,null,null,null,null,null,null,null,null,null,null,null,null,null,null,null,null,null,null,null,false]
[null,null,"舗装面積10,000ｍ2以上",null,null,null,null,null,null,null,null,null,null,null,null,null,null,null,null,null,null,null,null,null,null,false]
[null,{"$f":"IF($Z$52=TRUE,\"回答不要\",IF(AA279=0,\"未回答\",IF(AA279>=2,\"エラー！！※選択は１つまで※\",\"\")))","v":"未回答"},null,null,null,null,null,null,null,null,null,null,null,null,null,null,null,null,null,null,null,null,null,null,{"$f":"+IF(B279=\"\",\"回答済\",IF(B279=\"回答不要\",\"回答済\",\"未回答あり\"))","v":"未回答あり"},null,{"$f":"COUNTIF(Z272:Z278,TRUE)","v":0}]
["問10",null,"今後、ICT活用工事の普及のため、広島県に対して実施（継続）してほしい内容について、次から選択してください。（３つまで回答可）"]
[]
[null,null,"ICT活用に係る費用計上の見直し　（現在の積算基準では計上項目が不足している）",null,null,null,null,null,null,null,null,null,null,null,null,null,null,null,null,null,null,null,null,null,null,false]
[null,null,"技術の導入効果を分析・評価し、定期的に公表すること",null,null,null,null,null,null,null,null,null,null,null,null,null,null,null,null,null,null,null,null,null,null,false]
[null,null,"総合評価落札方式における加点",null,null,null,null,null,null,null,null,null,null,null,null,null,null,null,null,null,null,null,null,null,null,false]
[null,null,"工事成績評定の加点",null,null,null,null,null,null,null,null,null,null,null,null,null,null,null,null,null,null,null,null,null,null,false]
[null,null,"優良建設工事の表彰要件の加点",null,null,null,null,null,null,null,null,null,null,null,null,null,null,null,null,null,null,null,null,null,null,false]
[null,null,"対象工種の拡大",null,null,null,null,null,null,null,null,null,null,null,null,null,null,null,null,null,null,null,null,null,null,false]
[null,null,"調査設計段階からの導入（３次元地形測量、３次元設計データ作成など）",null,null,null,null,null,null,null,null,null,null,null,null,null,null,null,null,null,null,null,null,null,null,false]
[null,null,"機器類の調達環境（価格・台数）について業界への働きかけ",null,null,null,null,null,null,null,null,null,null,null,null,null,null,null,null,null,null,null,null,null,null,false]
[null,null,"機器類の調達や人材育成に係る費用助成制度の導入",null,null,null,null,null,null,null,null,null,null,null,null,null,null,null,null,null,null,null,null,null,null,false]
[null,null,"技術者向けの実務研修会・講習会等の開催",null,null,null,null,null,null,null,null,null,null,null,null,null,null,null,null,null,null,null,null,null,null,false]
[null,null,"経営者向けの実務研修会・講習会等の開催",null,null,null,null,null,null,null,null,null,null,null,null,null,null,null,null,null,null,null,null,null,null,false]
[null,null,"その他",null,null,null,null,null,null,null,null,null,null,null,null,null,null,null,null,null,null,null,null,null,null,false]
[null,null,"※「その他」を選択した場合は、具体な内容を記入してください。",null,null,null,null,null,null,null,null,null,null,null,null,null,null,null,null,null,null,null,null,null,null,{"$f":"+C295","v":0},{"$f":"COUNTIF(Z282:Z293,TRUE)","v":0}]
[]
[]
[]
[null,{"$f":"IF($Z$52=TRUE,\"回答不要\",IF(AA294=0,\"未回答\",IF(AA294>=4,\"エラー！！※選択は３つまで※\",IF(Z293=FALSE,\"\",IF(C295=\"\",\"エラー！！※その他の理由を記入してください※\",\"\")))))","v":"未回答"},null,null,null,null,null,null,null,null,null,null,null,null,null,null,null,null,null,null,null,null,null,null,{"$f":"+IF(B298=\"\",\"回答済\",IF(B298=\"回答不要\",\"回答済\",\"未回答あり\"))","v":"未回答あり"}]
["問11",null,"今回工事で行った「建設現場の生産性向上」の取組として、特にアピールする点がありましたら、ご記入ください。"]
[]
[null,null,null,null,null,null,null,null,null,null,null,null,null,null,null,null,null,null,null,null,null,null,null,null,null,{"$f":"+C301","v":0}]
[]
[]
[]
[]
[]
["問12",null,"その他、ICT活用工事に関して、ご意見等がありましたら、ご記入ください。"]
[null,null,null,null,null,null,null,null,null,null,null,null,null,null,null,null,null,null,null,null,null,null,null,null,null,{"$f":"+C308","v":0}]
[]
[]
[]
[]
[]
[]
["アンケート調査は以上です。ご協力ありがとうございました。",null,null,null,null,null,null,null,null,null,null,null,null,null,null,null,null,null,null,{"$f":"+IF(COUNTIF(Y57:Y314,\"未回答あり\"),\"状態：未回答あり\",\"状態：回答済\")","v":"状態：未回答あり"}]
["ご記入いただいたアンケートは、メールで技術管理課に提出してください。"]

{"sheet":"集計表","index":1,"n_rows":283,"n_cols":3,"rows_kept":283,"cut":false,"hidden":true,"merged":[]}
["集計表　受注者用"]
["施工者情報","会社名",{"$f":"+アンケート!G17","v":0}]
["工事情報","施行番号",{"$f":"+アンケート!G24","v":0}]
[{"$f":"+アンケート!A31","v":"問１"},{"$f":"+アンケート!C31","v":"本工事のICT実施の有無等について、次から選択してください。"}]
[null,{"$f":"+アンケート!C32","v":"土工において、全面的な活用を実施した（ICT活用工事）"},{"$f":"+アンケート!Z32","v":false}]
[null,{"$f":"+アンケート!C33","v":"土工において、部分的な活用を実施した（簡易型ICT活用工事）"},{"$f":"+アンケート!Z33","v":false}]
[null,{"$f":"+アンケート!C52","v":"ICT活用工事を希望しなかった、又はできなかった"},{"$f":"+アンケート!Z52","v":false}]
[{"$f":"+アンケート!A58","v":"問２"},{"$f":"+アンケート!C58","v":"今回、ICT活用工事を希望しなかった、又はできなかった理由について、次から選択してください。（３つまで回答可）"}]
[null,{"$f":"+アンケート!C60","v":"当工事現場ではICT活用が効果的でないと判断したため"},{"$f":"+アンケート!Z60","v":false}]
[null,{"$f":"+アンケート!C61","v":"工事の採算性に不安があるため"},{"$f":"+アンケート!Z61","v":false}]
[null,{"$f":"+アンケート!C62","v":"ICT機器やICT重機に係るコストが高いため"},{"$f":"+アンケート!Z62","v":false}]
[null,{"$f":"+アンケート!C63","v":"ICT機器やICT重機が不足し、調達できなかったため"},{"$f":"+アンケート!Z63","v":false}]
[null,{"$f":"+アンケート!C64","v":"ICT活用に係る部分を外注するためコストが高くなる"},{"$f":"+アンケート!Z64","v":false}]
[null,{"$f":"+アンケート!C65","v":"興味はあるが、ICT活用技術に関する知識（活用方法や施工管理基準など）が不足しているため"},{"$f":"+アンケート!Z65","v":false}]
[null,{"$f":"+アンケート!C66","v":"ICT活用技術の生産性向上の効果が分からない"},{"$f":"+アンケート!Z66","v":false}]
[null,{"$f":"+アンケート!C67","v":"ICT活用技術について、社内の理解が得られない"},{"$f":"+アンケート!Z67","v":false}]
[null,{"$f":"+アンケート!C68","v":"ICT活用技術に興味がない"},{"$f":"+アンケート!Z68","v":false}]
[null,{"$f":"+アンケート!C69","v":"発注者の都合によりできなかった"},{"$f":"+アンケート!Z69","v":false}]
[null,{"$f":"+アンケート!C70","v":"その他"},{"$f":"+アンケート!Z70","v":true}]
[null,{"$f":"+アンケート!C71","v":"※「その他」を選択した場合は、ICT活用工事を希望しなかった理由を記入してください。"},{"$f":"+アンケート!Z71","v":0}]
[{"$f":"+アンケート!#REF!","v":{"$error":"#REF!"}},{"$f":"+アンケート!#REF!","v":{"$error":"#REF!"}}]
[null,{"$f":"+アンケート!#REF!","v":{"$error":"#REF!"}},{"$f":"+アンケート!#REF!","v":{"$error":"#REF!"}}]
[null,{"$f":"+アンケート!#REF!","v":{"$error":"#REF!"}},{"$f":"+アンケート!#REF!","v":{"$error":"#REF!"}}]
[null,{"$f":"+アンケート!#REF!","v":{"$error":"#REF!"}},{"$f":"+アンケート!#REF!","v":{"$error":"#REF!"}}]
[null,{"$f":"+アンケート!#REF!","v":{"$error":"#REF!"}},{"$f":"+アンケート!#REF!","v":{"$error":"#REF!"}}]
[null,{"$f":"+アンケート!#REF!","v":{"$error":"#REF!"}},{"$f":"+アンケート!#REF!","v":{"$error":"#REF!"}}]
[{"$f":"+アンケート!#REF!","v":{"$error":"#REF!"}},{"$f":"+アンケート!#REF!","v":{"$error":"#REF!"}}]
[{"$f":"+アンケート!#REF!","v":{"$error":"#REF!"}},{"$f":"+アンケート!#REF!","v":{"$error":"#REF!"}}]
[null,{"$f":"+アンケート!#REF!","v":{"$error":"#REF!"}},{"$f":"+アンケート!#REF!","v":{"$error":"#REF!"}}]
[null,{"$f":"+アンケート!#REF!","v":{"$error":"#REF!"}},{"$f":"+アンケート!#REF!","v":{"$error":"#REF!"}}]
[null,{"$f":"+アンケート!#REF!","v":{"$error":"#REF!"}},{"$f":"+アンケート!#REF!","v":{"$error":"#REF!"}}]
[null,{"$f":"+アンケート!#REF!","v":{"$error":"#REF!"}},{"$f":"+アンケート!#REF!","v":{"$error":"#REF!"}}]
[null,{"$f":"+アンケート!#REF!","v":{"$error":"#REF!"}},{"$f":"+アンケート!#REF!","v":{"$error":"#REF!"}}]
[null,{"$f":"+アンケート!#REF!","v":{"$error":"#REF!"}},{"$f":"+アンケート!#REF!","v":{"$error":"#REF!"}}]
[null,{"$f":"+アンケート!#REF!","v":{"$error":"#REF!"}},{"$f":"+アンケート!#REF!","v":{"$error":"#REF!"}}]
[{"$f":"+アンケート!#REF!","v":{"$error":"#REF!"}},{"$f":"+アンケート!#REF!","v":{"$error":"#REF!"}}]
[null,{"$f":"+アンケート!#REF!","v":{"$error":"#REF!"}},{"$f":"+アンケート!#REF!","v":{"$error":"#REF!"}}]
[null,{"$f":"+アンケート!#REF!","v":{"$error":"#REF!"}},{"$f":"+アンケート!#REF!","v":{"$error":"#REF!"}}]
[null,{"$f":"+アンケート!#REF!","v":{"$error":"#REF!"}},{"$f":"+アンケート!#REF!","v":{"$error":"#REF!"}}]
[null,{"$f":"+アンケート!#REF!","v":{"$error":"#REF!"}},{"$f":"+アンケート!#REF!","v":{"$error":"#REF!"}}]
[null,{"$f":"+アンケート!#REF!","v":{"$error":"#REF!"}},{"$f":"+アンケート!#REF!","v":{"$error":"#REF!"}}]
[null,{"$f":"+アンケート!#REF!","v":{"$error":"#REF!"}},{"$f":"+アンケート!#REF!","v":{"$error":"#REF!"}}]
[null,{"$f":"+アンケート!#REF!","v":{"$error":"#REF!"}},{"$f":"+アンケート!#REF!","v":{"$error":"#REF!"}}]
[{"$f":"+アンケート!#REF!","v":{"$error":"#REF!"}},{"$f":"+アンケート!#REF!","v":{"$error":"#REF!"}}]
[null,{"$f":"+アンケート!#REF!","v":{"$error":"#REF!"}},{"$f":"+アンケート!#REF!","v":{"$error":"#REF!"}}]
[null,{"$f":"+アンケート!#REF!","v":{"$error":"#REF!"}},{"$f":"+アンケート!#REF!","v":{"$error":"#REF!"}}]
[null,{"$f":"+アンケート!#REF!","v":{"$error":"#REF!"}},{"$f":"+アンケート!#REF!","v":{"$error":"#REF!"}}]
[null,{"$f":"+アンケート!#REF!","v":{"$error":"#REF!"}},{"$f":"+アンケート!#REF!","v":{"$error":"#REF!"}}]
[null,{"$f":"+アンケート!#REF!","v":{"$error":"#REF!"}},{"$f":"+アンケート!#REF!","v":{"$error":"#REF!"}}]
[null,{"$f":"+アンケート!#REF!","v":{"$error":"#REF!"}},{"$f":"+アンケート!#REF!","v":{"$error":"#REF!"}}]
[{"$f":"+アンケート!#REF!","v":{"$error":"#REF!"}},{"$f":"+アンケート!#REF!","v":{"$error":"#REF!"}}]
[null,{"$f":"+アンケート!#REF!","v":{"$error":"#REF!"}},{"$f":"+アンケート!#REF!","v":{"$error":"#REF!"}}]
[null,{"$f":"+アンケート!#REF!","v":{"$error":"#REF!"}},{"$f":"+アンケート!#REF!","v":{"$error":"#REF!"}}]
[null,{"$f":"+アンケート!#REF!","v":{"$error":"#REF!"}},{"$f":"+アンケート!#REF!","v":{"$error":"#REF!"}}]
[null,{"$f":"+アンケート!#REF!","v":{"$error":"#REF!"}},{"$f":"+アンケート!#REF!","v":{"$error":"#REF!"}}]
[null,{"$f":"+アンケート!#REF!","v":{"$error":"#REF!"}},{"$f":"+アンケート!#REF!","v":{"$error":"#REF!"}}]
[null,{"$f":"+アンケート!#REF!","v":{"$error":"#REF!"}},{"$f":"+アンケート!#REF!","v":{"$error":"#REF!"}}]
[{"$f":"+アンケート!#REF!","v":{"$error":"#REF!"}},{"$f":"+アンケート!#REF!","v":{"$error":"#REF!"}}]
[null,{"$f":"+アンケート!#REF!","v":{"$error":"#REF!"}},{"$f":"+アンケート!#REF!","v":{"$error":"#REF!"}}]
[null,{"$f":"+アンケート!#REF!","v":{"$error":"#REF!"}},{"$f":"+アンケート!#REF!","v":{"$error":"#REF!"}}]
[null,{"$f":"+アンケート!#REF!","v":{"$error":"#REF!"}},{"$f":"+アンケート!#REF!","v":{"$error":"#REF!"}}]
[null,{"$f":"+アンケート!#REF!","v":{"$error":"#REF!"}},{"$f":"+アンケート!#REF!","v":{"$error":"#REF!"}}]
[null,{"$f":"+アンケート!#REF!","v":{"$error":"#REF!"}},{"$f":"+アンケート!#REF!","v":{"$error":"#REF!"}}]
[null,{"$f":"+アンケート!#REF!","v":{"$error":"#REF!"}},{"$f":"+アンケート!#REF!","v":{"$error":"#REF!"}}]
[{"$f":"+アンケート!#REF!","v":{"$error":"#REF!"}},{"$f":"+アンケート!#REF!","v":{"$error":"#REF!"}}]
[{"$f":"+アンケート!#REF!","v":{"$error":"#REF!"}},{"$f":"+アンケート!#REF!","v":{"$error":"#REF!"}}]
[null,{"$f":"+アンケート!#REF!","v":{"$error":"#REF!"}}]
[null,{"$f":"+アンケート!#REF!","v":{"$error":"#REF!"}},{"$f":"+アンケート!#REF!","v":{"$error":"#REF!"}}]
[null,{"$f":"+アンケート!#REF!","v":{"$error":"#REF!"}},{"$f":"+アンケート!#REF!","v":{"$error":"#REF!"}}]
[null,{"$f":"+アンケート!#REF!","v":{"$error":"#REF!"}},{"$f":"+アンケート!#REF!","v":{"$error":"#REF!"}}]
[null,{"$f":"+アンケート!#REF!","v":{"$error":"#REF!"}},{"$f":"+アンケート!#REF!","v":{"$error":"#REF!"}}]
[null,{"$f":"+アンケート!#REF!","v":{"$error":"#REF!"}},{"$f":"+アンケート!#REF!","v":{"$error":"#REF!"}}]
[null,{"$f":"+アンケート!#REF!","v":{"$error":"#REF!"}},{"$f":"+アンケート!#REF!","v":{"$error":"#REF!"}}]
[null,{"$f":"+アンケート!#REF!","v":{"$error":"#REF!"}},{"$f":"+アンケート!#REF!","v":{"$error":"#REF!"}}]
[null,{"$f":"+アンケート!#REF!","v":{"$error":"#REF!"}},{"$f":"+アンケート!#REF!","v":{"$error":"#REF!"}}]
[null,{"$f":"+アンケート!#REF!","v":{"$error":"#REF!"}},{"$f":"+アンケート!#REF!","v":{"$error":"#REF!"}}]
[null,{"$f":"+アンケート!#REF!","v":{"$error":"#REF!"}}]
[null,{"$f":"+アンケート!#REF!","v":{"$error":"#REF!"}},{"$f":"+アンケート!#REF!","v":{"$error":"#REF!"}}]
[null,{"$f":"+アンケート!#REF!","v":{"$error":"#REF!"}},{"$f":"+アンケート!#REF!","v":{"$error":"#REF!"}}]
[null,{"$f":"+アンケート!#REF!","v":{"$error":"#REF!"}},{"$f":"+アンケート!#REF!","v":{"$error":"#REF!"}}]
[null,{"$f":"+アンケート!#REF!","v":{"$error":"#REF!"}},{"$f":"+アンケート!#REF!","v":{"$error":"#REF!"}}]
[null,{"$f":"+アンケート!#REF!","v":{"$error":"#REF!"}}]
[null,{"$f":"+アンケート!#REF!","v":{"$error":"#REF!"}},{"$f":"+アンケート!#REF!","v":{"$error":"#REF!"}}]
[null,{"$f":"+アンケート!#REF!","v":{"$error":"#REF!"}}]
[null,{"$f":"+アンケート!#REF!","v":{"$error":"#REF!"}},{"$f":"+アンケート!#REF!","v":{"$error":"#REF!"}}]
[null,{"$f":"+アンケート!#REF!","v":{"$error":"#REF!"}}]
[null,{"$f":"+アンケート!#REF!","v":{"$error":"#REF!"}},{"$f":"+アンケート!#REF!","v":{"$error":"#REF!"}}]
[null,{"$f":"+アンケート!#REF!","v":{"$error":"#REF!"}},{"$f":"+アンケート!#REF!","v":{"$error":"#REF!"}}]
[{"$f":"+アンケート!#REF!","v":{"$error":"#REF!"}},{"$f":"+アンケート!#REF!","v":{"$error":"#REF!"}}]
[null,{"$f":"+アンケート!#REF!","v":{"$error":"#REF!"}}]
[null,{"$f":"+アンケート!#REF!","v":{"$error":"#REF!"}},{"$f":"+アンケート!#REF!","v":{"$error":"#REF!"}}]
[null,{"$f":"+アンケート!#REF!","v":{"$error":"#REF!"}},{"$f":"+アンケート!#REF!","v":{"$error":"#REF!"}}]
[null,{"$f":"+アンケート!#REF!","v":{"$error":"#REF!"}},{"$f":"+アンケート!#REF!","v":{"$error":"#REF!"}}]
[null,{"$f":"+アンケート!#REF!","v":{"$error":"#REF!"}},{"$f":"+アンケート!#REF!","v":{"$error":"#REF!"}}]
[null,{"$f":"+アンケート!#REF!","v":{"$error":"#REF!"}}]
[null,{"$f":"+アンケート!#REF!","v":{"$error":"#REF!"}},{"$f":"+アンケート!#REF!","v":{"$error":"#REF!"}}]
[null,{"$f":"+アンケート!#REF!","v":{"$error":"#REF!"}}]
[null,{"$f":"+アンケート!#REF!","v":{"$error":"#REF!"}},{"$f":"+アンケート!#REF!","v":{"$error":"#REF!"}}]
[null,{"$f":"+アンケート!#REF!","v":{"$error":"#REF!"}},{"$f":"+アンケート!#REF!","v":{"$error":"#REF!"}}]
[{"$f":"+アンケート!#REF!","v":{"$error":"#REF!"}},{"$f":"+アンケート!#REF!","v":{"$error":"#REF!"}}]
[null,{"$f":"+アンケート!#REF!","v":{"$error":"#REF!"}}]
[null,{"$f":"+アンケート!#REF!","v":{"$error":"#REF!"}},{"$f":"+アンケート!#REF!","v":{"$error":"#REF!"}}]
[null,{"$f":"+アンケート!#REF!","v":{"$error":"#REF!"}},{"$f":"+アンケート!#REF!","v":{"$error":"#REF!"}}]
[null,{"$f":"+アンケート!#REF!","v":{"$error":"#REF!"}},{"$f":"+アンケート!#REF!","v":{"$error":"#REF!"}}]
[null,{"$f":"+アンケート!#REF!","v":{"$error":"#REF!"}}]
[null,{"$f":"+アンケート!#REF!","v":{"$error":"#REF!"}},{"$f":"+アンケート!#REF!","v":{"$error":"#REF!"}}]
[null,{"$f":"+アンケート!#REF!","v":{"$error":"#REF!"}},{"$f":"+アンケート!#REF!","v":{"$error":"#REF!"}}]
[null,{"$f":"+アンケート!#REF!","v":{"$error":"#REF!"}},{"$f":"+アンケート!#REF!","v":{"$error":"#REF!"}}]
[null,{"$f":"+アンケート!#REF!","v":{"$error":"#REF!"}}]
[null,{"$f":"+アンケート!#REF!","v":{"$error":"#REF!"}},{"$f":"+アンケート!#REF!","v":{"$error":"#REF!"}}]
[null,{"$f":"+アンケート!#REF!","v":{"$error":"#REF!"}},{"$f":"+アンケート!#REF!","v":{"$error":"#REF!"}}]
[null,{"$f":"+アンケート!#REF!","v":{"$error":"#REF!"}},{"$f":"+アンケート!#REF!","v":{"$error":"#REF!"}}]
[{"$f":"+アンケート!#REF!","v":{"$error":"#REF!"}},{"$f":"+アンケート!#REF!","v":{"$error":"#REF!"}}]
[null,{"$f":"+アンケート!#REF!","v":{"$error":"#REF!"}}]
[null,{"$f":"+アンケート!#REF!","v":{"$error":"#REF!"}},{"$f":"+アンケート!#REF!","v":{"$error":"#REF!"}}]
[null,{"$f":"+アンケート!#REF!","v":{"$error":"#REF!"}},{"$f":"+アンケート!#REF!","v":{"$error":"#REF!"}}]
[null,{"$f":"+アンケート!#REF!","v":{"$error":"#REF!"}},{"$f":"+アンケート!#REF!","v":{"$error":"#REF!"}}]
[null,{"$f":"+アンケート!#REF!","v":{"$error":"#REF!"}},{"$f":"+アンケート!#REF!","v":{"$error":"#REF!"}}]
[null,{"$f":"+アンケート!#REF!","v":{"$error":"#REF!"}},{"$f":"+アンケート!#REF!","v":{"$error":"#REF!"}}]
[null,{"$f":"+アンケート!#REF!","v":{"$error":"#REF!"}},{"$f":"+アンケート!#REF!","v":{"$error":"#REF!"}}]
[null,{"$f":"+アンケート!#REF!","v":{"$error":"#REF!"}},{"$f":"+アンケート!#REF!","v":{"$error":"#REF!"}}]
[null,{"$f":"+アンケート!#REF!","v":{"$error":"#REF!"}},{"$f":"+アンケート!#REF!","v":{"$error":"#REF!"}}]
[null,{"$f":"+アンケート!#REF!","v":{"$error":"#REF!"}},{"$f":"+アンケート!#REF!","v":{"$error":"#REF!"}}]
[null,{"$f":"+アンケート!#REF!","v":{"$error":"#REF!"}},{"$f":"+アンケート!#REF!","v":{"$error":"#REF!"}}]
[null,{"$f":"+アンケート!#REF!","v":{"$error":"#REF!"}}]
[null,{"$f":"+アンケート!#REF!","v":{"$error":"#REF!"}},{"$f":"+アンケート!#REF!","v":{"$error":"#REF!"}}]
[null,{"$f":"+アンケート!#REF!","v":{"$error":"#REF!"}},{"$f":"+アンケート!#REF!","v":{"$error":"#REF!"}}]
[null,{"$f":"+アンケート!#REF!","v":{"$error":"#REF!"}},{"$f":"+アンケート!#REF!","v":{"$error":"#REF!"}}]
[null,{"$f":"+アンケート!#REF!","v":{"$error":"#REF!"}},{"$f":"+アンケート!#REF!","v":{"$error":"#REF!"}}]
[null,{"$f":"+アンケート!#REF!","v":{"$error":"#REF!"}}]
[null,{"$f":"+アンケート!#REF!","v":{"$error":"#REF!"}},{"$f":"+アンケート!#REF!","v":{"$error":"#REF!"}}]
[null,{"$f":"+アンケート!#REF!","v":{"$error":"#REF!"}}]
[null,{"$f":"+アンケート!#REF!","v":{"$error":"#REF!"}},{"$f":"+アンケート!#REF!","v":{"$error":"#REF!"}}]
[null,{"$f":"+アンケート!#REF!","v":{"$error":"#REF!"}}]
[null,{"$f":"+アンケート!#REF!","v":{"$error":"#REF!"}},{"$f":"+アンケート!#REF!","v":{"$error":"#REF!"}}]
[null,{"$f":"+アンケート!#REF!","v":{"$error":"#REF!"}},{"$f":"+アンケート!#REF!","v":{"$error":"#REF!"}}]
[{"$f":"+アンケート!A76","v":"問３"},{"$f":"+アンケート!C76","v":"今回工事について、ICT導入によって感じた効果をお答えください。"}]
[{"$f":"+アンケート!A77","v":"　問３-１"},{"$f":"+アンケート!D77","v":"３次元起工測量（ICT施工、従来施工双方に必要となる基準点測量は除く）"}]
[null,{"$f":"+アンケート!B78","v":"(1)　従来施工での所要時間　（当該工事と同等の数量・条件を想定し、ご記入ください）"}]
[null,{"$f":"+アンケート!C81","v":"従来施工での延べ作業人員（人・日）"},{"$f":"+アンケート!Z81","v":0}]
[null,{"$f":"+アンケート!C80","v":"従来施工での所要日数（日）"},{"$f":"+アンケート!Z80","v":0}]
[null,{"$f":"+アンケート!C82","v":"従来施工での日当り所要人員（人）"},{"$f":"+アンケート!Z82","v":0}]
[null,{"$f":"+アンケート!B84","v":"(2)　ICT施工での所要時間"}]
[null,{"$f":"+アンケート!C88","v":"ICT施工での延べ作業人員（人・日）"},{"$f":"+アンケート!Z88","v":0}]
[null,{"$f":"+アンケート!C87","v":"ICT施工での所要日数（日）"},{"$f":"+アンケート!Z87","v":0}]
[null,{"$f":"+アンケート!C89","v":"ICT施工での日当り所要人員（人）"},{"$f":"+アンケート!Z89","v":"入力待ち"}]
[null,{"$f":"+アンケート!B91","v":"(3)　ICT施工による満足度について、次から選択してください。また、その理由をご記入ください。"}]
[null,{"$f":"+アンケート!D92","v":"期待した以上の効果が得られた"},{"$f":"+アンケート!Z92","v":false}]
[null,{"$f":"+アンケート!D93","v":"期待した通りの効果が得られた"},{"$f":"+アンケート!Z93","v":false}]
[null,{"$f":"+アンケート!D94","v":"期待したほどは効果が得られなかった"},{"$f":"+アンケート!Z94","v":false}]
[null,{"$f":"+アンケート!D95","v":"期待した効果が全く得られなかった"},{"$f":"+アンケート!Z95","v":false}]
[null,{"$f":"+アンケート!D96","v":"※上記を選択した理由を記入してください。"},{"$f":"+アンケート!Z96","v":0}]
[{"$f":"+アンケート!A101","v":"　問３-２"},{"$f":"+アンケート!D101","v":"３次元設計データ作成"}]
[null,{"$f":"+アンケート!B102","v":"(1)　従来施工での所要時間（当該工事と同等の数量・条件を想定し，、ご記入ください）"}]
[null,{"$f":"+アンケート!C106","v":"従来施工での延べ作業人員（人・日）"},{"$f":"+アンケート!Z106","v":0}]
[null,{"$f":"+アンケート!C105","v":"従来施工での所要日数（日）"},{"$f":"+アンケート!Z105","v":0}]
[null,{"$f":"+アンケート!C107","v":"従来施工での日当り所要人員（人）"},{"$f":"+アンケート!Z107","v":"入力待ち"}]
[null,{"$f":"+アンケート!B109","v":"(2)　ICT施工での所要時間"}]
[null,{"$f":"+アンケート!C113","v":"ICT施工での延べ作業人員（人・日）"},{"$f":"+アンケート!Z113","v":0}]
[null,{"$f":"+アンケート!C112","v":"ICT施工での所要日数（日）"},{"$f":"+アンケート!Z112","v":0}]
[null,{"$f":"+アンケート!C114","v":"ICT施工での日当り所要人員（人）"},{"$f":"+アンケート!Z114","v":"入力待ち"}]
[null,{"$f":"+アンケート!B116","v":"(3)　ICT施工による満足度について、次から選択してください。また、その理由をご記入ください。"}]
[null,{"$f":"+アンケート!D117","v":"期待した以上の効果が得られた"},{"$f":"+アンケート!Z117","v":false}]
[null,{"$f":"+アンケート!D118","v":"期待した通りの効果が得られた"},{"$f":"+アンケート!Z118","v":false}]
[null,{"$f":"+アンケート!D119","v":"期待したほどは効果が得られなかった"},{"$f":"+アンケート!Z119","v":false}]
[null,{"$f":"+アンケート!D120","v":"期待した効果が全く得られなかった"},{"$f":"+アンケート!Z120","v":false}]
[null,{"$f":"+アンケート!D121","v":"※上記を選択した理由を記入してください。"},{"$f":"+アンケート!Z121","v":0}]
[{"$f":"+アンケート!A126","v":"　問３-３"},{"$f":"+アンケート!D126","v":"ICT建設機械による施工"}]
[null,{"$f":"+アンケート!B127","v":"(1)　従来施工での所要時間（当該工事と同等の数量・条件を想定し、ご記入ください）"}]
[null,{"$f":"+アンケート!C131","v":"従来施工での延べ作業人員（人・日）"},{"$f":"+アンケート!Z131","v":0}]
[null,{"$f":"+アンケート!C130","v":"従来施工での所要日数（日）"},{"$f":"+アンケート!Z130","v":0}]
[null,{"$f":"+アンケート!C132","v":"従来施工での日当り所要人員（人）"},{"$f":"+アンケート!Z132","v":"入力待ち"}]
[null,{"$f":"+アンケート!B134","v":"(2)　ICT施工での所要時間"},{"$f":"+アンケート!Z134","v":0}]
[null,{"$f":"+アンケート!C139","v":"ICT施工での延べ作業人員（人・日）"},{"$f":"+アンケート!Z139","v":0}]
[null,{"$f":"+アンケート!C138","v":"ICT施工での所要日数（日）"},{"$f":"+アンケート!Z138","v":0}]
[null,{"$f":"+アンケート!C140","v":"ICT施工での日当り所要人員（人）"},{"$f":"+アンケート!Z140","v":"入力待ち"}]
[null,{"$f":"+アンケート!B142","v":"(3)　ICT施工による満足度について、次から選択してください。"},{"$f":"+アンケート!Z142","v":0}]
[null,{"$f":"+アンケート!D143","v":"期待した以上の効果が得られた"},{"$f":"+アンケート!Z143","v":false}]
[null,{"$f":"+アンケート!D144","v":"期待した通りの効果が得られた"},{"$f":"+アンケート!Z144","v":false}]
[null,{"$f":"+アンケート!D145","v":"期待したほどは効果が得られなかった"},{"$f":"+アンケート!Z145","v":false}]
[null,{"$f":"+アンケート!D146","v":"期待した効果が全く得られなかった"},{"$f":"+アンケート!Z146","v":false}]
[null,{"$f":"+アンケート!D147","v":"※上記を選択した理由を記入してください。"},{"$f":"+アンケート!Z147","v":0}]
[{"$f":"+アンケート!A152","v":"　問３-４"},{"$f":"+アンケート!D152","v":"３次元出来形管理等の施工管理\n（出来形管理資料作成にかかる全ての作業を対象としてご記入ください）"}]
[null,{"$f":"+アンケート!B154","v":"(1)　従来施工での所要時間（当該工事と同等の数量・条件を想定し、ご記入ください）"}]
[null,{"$f":"+アンケート!C156","v":"従来施工での延べ作業人員（人・日）"},{"$f":"+アンケート!Z156","v":0}]
[null,{"$f":"+アンケート!C155","v":"従来施工での所要日数（日）"},{"$f":"+アンケート!Z155","v":0}]
[null,{"$f":"+アンケート!C157","v":"従来施工での日当り所要人員（人）"},{"$f":"+アンケート!Z157","v":"入力待ち"}]
[null,{"$f":"+アンケート!B159","v":"(2)　ICT施工での所要時間"}]
[null,{"$f":"+アンケート!C161","v":"ICT施工での延べ作業人員（人・日）"},{"$f":"+アンケート!Z161","v":0}]
[null,{"$f":"+アンケート!C160","v":"ICT施工での所要日数（日）"},{"$f":"+アンケート!Z160","v":0}]
[null,{"$f":"+アンケート!C162","v":"ICT施工での日当り所要人員（人）"},{"$f":"+アンケート!Z162","v":"入力待ち"}]
[null,{"$f":"+アンケート!B164","v":"(3)　ICT施工による満足度について、次から選択してください。"}]
[null,{"$f":"+アンケート!D165","v":"期待した以上の効果が得られた"},{"$f":"+アンケート!Z165","v":false}]
[null,{"$f":"+アンケート!D166","v":"期待した通りの効果が得られた"},{"$f":"+アンケート!Z166","v":false}]
[null,{"$f":"+アンケート!D167","v":"期待したほどは効果が得られなかった"},{"$f":"+アンケート!Z167","v":false}]
[null,{"$f":"+アンケート!D168","v":"期待した効果が全く得られなかった"},{"$f":"+アンケート!Z168","v":false}]
[null,{"$f":"+アンケート!D169","v":"※上記を選択した理由を記入してください。"},{"$f":"+アンケート!Z169","v":0}]
[{"$f":"+アンケート!A174","v":"　問３-５"},{"$f":"+アンケート!D174","v":"３次元データの納品"}]
[null,{"$f":"+アンケート!B175","v":"(1)　従来施工での所要時間（当該工事と同等の数量・条件を想定し、ご記入ください）"}]
[null,{"$f":"+アンケート!C177","v":"従来施工での延べ作業人員（人・日）"},{"$f":"+アンケート!Z177","v":0}]
[null,{"$f":"+アンケート!C176","v":"従来施工での所要日数（日）"},{"$f":"+アンケート!Z176","v":0}]
[null,{"$f":"+アンケート!C178","v":"従来施工での日当り所要人員（人）"},{"$f":"+アンケート!Z178","v":"入力待ち"}]
[null,{"$f":"+アンケート!B180","v":"(2)　ICT施工での所要時間"}]
[null,{"$f":"+アンケート!C182","v":"ICT施工での延べ作業人員（人・日）"},{"$f":"+アンケート!Z182","v":0}]
[null,{"$f":"+アンケート!C181","v":"ICT施工での所要日数（日）"},{"$f":"+アンケート!Z181","v":0}]
[null,{"$f":"+アンケート!C183","v":"ICT施工での日当り所要人員（人）"},{"$f":"+アンケート!Z183","v":"入力待ち"}]
[null,{"$f":"+アンケート!B185","v":"(3)　ICT施工による満足度について、次から選択してください。"}]
[null,{"$f":"+アンケート!D186","v":"期待した以上の効果が得られた"},{"$f":"+アンケート!Z186","v":false}]
[null,{"$f":"+アンケート!D187","v":"期待した通りの効果が得られた"},{"$f":"+アンケート!Z187","v":false}]
[null,{"$f":"+アンケート!D188","v":"期待したほどは効果が得られなかった"},{"$f":"+アンケート!Z188","v":false}]
[null,{"$f":"+アンケート!D189","v":"期待した効果が全く得られなかった"},{"$f":"+アンケート!Z189","v":false}]
[null,{"$f":"+アンケート!D190","v":"※上記を選択した理由を記入してください。"},{"$f":"+アンケート!Z190","v":0}]
[{"$f":"+アンケート!A195","v":"　問３-６"},{"$f":"+アンケート!D195","v":"ICT活用効果の確認"}]
[null,{"$f":"+アンケート!D207","v":"確認した"},{"$f":"+アンケート!Z207","v":false}]
[{"$f":"+アンケート!A209","v":"　問３-７"},{"$f":"+アンケート!D209","v":"今回のICT活用工事を実施しメリットと感じた項目について次の番号から選択してください。\n（複数選択可）"}]
[null,{"$f":"+アンケート!D211","v":"作業効率の向上"},{"$f":"+アンケート!Z211","v":false}]
[null,{"$f":"+アンケート!D212","v":"コスト縮減"},{"$f":"+アンケート!Z212","v":false}]
[null,{"$f":"+アンケート!D213","v":"工事成績評定の加点"},{"$f":"+アンケート!Z213","v":false}]
[null,{"$f":"+アンケート!D213","v":"工事成績評定の加点"},{"$f":"+アンケート!Z213","v":false}]
[null,{"$f":"+アンケート!D214","v":"優良建設工事の表彰要件の加点"},{"$f":"+アンケート!Z214","v":false}]
[null,{"$f":"+アンケート!D216","v":"ICT活用の経験・人材育成"},{"$f":"+アンケート!Z216","v":false}]
[null,{"$f":"+アンケート!D217","v":"安全性の向上"},{"$f":"+アンケート!Z217","v":false}]
[null,{"$f":"+アンケート!D218","v":"若手技術者等の経験の浅い技術者でも一定品質の施工が可能（熟練者不足への対応）"},{"$f":"+アンケート!Z218","v":false}]
[null,{"$f":"+アンケート!D219","v":"その他"},{"$f":"+アンケート!Z219","v":false}]
[null,{"$f":"+アンケート!D220","v":"※「その他」を選択した場合は、メリットと感じた内容を記入してください。"},{"$f":"+アンケート!Z220","v":0}]
[{"$f":"+アンケート!A225","v":"問４"},{"$f":"+アンケート!C225","v":"今後、ICT活用工事を積極的に取り組みたいと考えていますか。次から選択してください。"}]
[null,{"$f":"+アンケート!C226","v":"考えている"},{"$f":"+アンケート!Z226","v":false}]
[null,{"$f":"+アンケート!C227","v":"考えていない"},{"$f":"+アンケート!Z227","v":false}]
[null,{"$f":"+アンケート!C228","v":"今後検討する"},{"$f":"+アンケート!Z228","v":false}]
[{"$f":"+アンケート!A230","v":"問５"},{"$f":"+アンケート!C230","v":"今後、ICT建設機械（機器）の購入を考えていますか。次から選択してください。\n（購入には、従来建設機械を後付け等でICT建設機械に改良する場合も含む）"}]
[null,{"$f":"+アンケート!C232","v":"購入を考えている"},{"$f":"+アンケート!Z232","v":false}]
[null,{"$f":"+アンケート!C233","v":"購入を考えていない　（ICT活用を行う場合、レンタル 又は 下請（建設会社） を利用する）"},{"$f":"+アンケート!Z233","v":false}]
[null,{"$f":"+アンケート!D234","v":"※「購入を考えている」を選択した場合は、検討されているICT建設機械（機器）を記入してください。\n　（例：MGバックホウ、MCバックホウ、後付けMGバックホウ、写真測量用UAVなど）"},{"$f":"+アンケート!Z234","v":0}]
[{"$f":"+アンケート!A240","v":"問６"},{"$f":"+アンケート!C240","v":"ICT土工を実施する場合、どのくらいの土工量があれば妥当と考えますか。次から選択してください。なお、掘削及び盛土の合計量としてください。"}]
[null,{"$f":"+アンケート!C242","v":"実施していないため分からない"},{"$f":"+アンケート!Z242","v":false}]
[null,{"$f":"+アンケート!C243","v":"土工量500ｍ3未満 （施工量は関係ない）"},{"$f":"+アンケート!Z243","v":false}]
[null,{"$f":"+アンケート!C244","v":"土工量500ｍ3以上"},{"$f":"+アンケート!Z244","v":true}]
[null,{"$f":"+アンケート!C245","v":"土工量1,000ｍ3以上"},{"$f":"+アンケート!Z245","v":false}]
[null,{"$f":"+アンケート!C246","v":"土工量3,000ｍ3以上"},{"$f":"+アンケート!Z246","v":false}]
[null,{"$f":"+アンケート!C247","v":"土工量5,000ｍ3以上"},{"$f":"+アンケート!Z247","v":false}]
[null,{"$f":"+アンケート!C248","v":"土工量10,000ｍ3以上"},{"$f":"+アンケート!Z248","v":false}]
[{"$f":"+アンケート!A250","v":"問７"},{"$f":"+アンケート!C250","v":"ICT舗装工を実施する場合、どのくらいの舗装面積があれば妥当と考えますか。次から選択してください。"}]
[null,{"$f":"+アンケート!C252","v":"実施していないため分からない"},{"$f":"+アンケート!Z252","v":false}]
[null,{"$f":"+アンケート!C253","v":"舗装面積500ｍ2未満 （施工量は関係ない）"},{"$f":"+アンケート!Z253","v":false}]
[null,{"$f":"+アンケート!C254","v":"舗装面積500ｍ2以上"},{"$f":"+アンケート!Z254","v":false}]
[null,{"$f":"+アンケート!C255","v":"舗装面積1,000ｍ2以上"},{"$f":"+アンケート!Z255","v":false}]
[null,{"$f":"+アンケート!C256","v":"舗装面積3,000ｍ2以上"},{"$f":"+アンケート!Z256","v":false}]
[null,{"$f":"+アンケート!C257","v":"舗装面積5,000ｍ2以上"},{"$f":"+アンケート!Z257","v":false}]
[null,{"$f":"+アンケート!C258","v":"舗装面積10,000ｍ2以上"},{"$f":"+アンケート!Z258","v":false}]
[{"$f":"+アンケート!A260","v":"問８"},{"$f":"+アンケート!C260","v":"ICT河川浚渫を実施する場合、どのくらいの土工量があれば妥当と考えますか。次から選択してください。"}]
[null,{"$f":"+アンケート!C262","v":"実施していないため分からない"},{"$f":"+アンケート!Z262","v":false}]
[null,{"$f":"+アンケート!C263","v":"土工量500ｍ3未満 （施工量は関係ない）"},{"$f":"+アンケート!Z263","v":false}]
[null,{"$f":"+アンケート!C264","v":"土工量500ｍ3以上"},{"$f":"+アンケート!Z264","v":false}]
[null,{"$f":"+アンケート!C265","v":"土工量1,000ｍ3以上"},{"$f":"+アンケート!Z265","v":false}]
[null,{"$f":"+アンケート!C266","v":"土工量3,000ｍ3以上"},{"$f":"+アンケート!Z266","v":false}]
[null,{"$f":"+アンケート!C267","v":"土工量5,000ｍ3以上"},{"$f":"+アンケート!Z267","v":false}]
[null,{"$f":"+アンケート!C268","v":"土工量10,000ｍ3以上"},{"$f":"+アンケート!Z268","v":false}]
[{"$f":"+アンケート!A270","v":"問９"},{"$f":"+アンケート!C270","v":"ICT舗装工（修繕工）を実施する場合、どのくらいの舗装面積があれば妥当と考えますか。次から選択してください。"}]
[null,{"$f":"+アンケート!C272","v":"実施していないため分からない"},{"$f":"+アンケート!Z272","v":false}]
[null,{"$f":"+アンケート!C273","v":"舗装面積500ｍ2未満 （施工量は関係ない）"},{"$f":"+アンケート!Z273","v":false}]
[null,{"$f":"+アンケート!C274","v":"舗装面積500ｍ2以上"},{"$f":"+アンケート!Z274","v":false}]
[null,{"$f":"+アンケート!C275","v":"舗装面積1,000ｍ2以上"},{"$f":"+アンケート!Z275","v":false}]
[null,{"$f":"+アンケート!C276","v":"舗装面積3,000ｍ2以上"},{"$f":"+アンケート!Z276","v":false}]
[null,{"$f":"+アンケート!C277","v":"舗装面積5,000ｍ2以上"},{"$f":"+アンケート!Z277","v":false}]
[null,{"$f":"+アンケート!C278","v":"舗装面積10,000ｍ2以上"},{"$f":"+アンケート!Z278","v":false}]
[{"$f":"+アンケート!A280","v":"問10"},{"$f":"+アンケート!C280","v":"今後、ICT活用工事の普及のため、広島県に対して実施（継続）してほしい内容について、次から選択してください。（３つまで回答可）"}]
[null,{"$f":"+アンケート!C282","v":"ICT活用に係る費用計上の見直し　（現在の積算基準では計上項目が不足している）"},{"$f":"+アンケート!Z282","v":false}]
[null,{"$f":"+アンケート!C283","v":"技術の導入効果を分析・評価し、定期的に公表すること"},{"$f":"+アンケート!Z283","v":false}]
[null,{"$f":"+アンケート!C284","v":"総合評価落札方式における加点"},{"$f":"+アンケート!Z284","v":false}]
[null,{"$f":"+アンケート!C285","v":"工事成績評定の加点"},{"$f":"+アンケート!Z285","v":false}]
[null,{"$f":"+アンケート!C286","v":"優良建設工事の表彰要件の加点"},{"$f":"+アンケート!Z286","v":false}]
[null,{"$f":"+アンケート!C287","v":"対象工種の拡大"},{"$f":"+アンケート!Z287","v":false}]
[null,{"$f":"+アンケート!C288","v":"調査設計段階からの導入（３次元地形測量、３次元設計データ作成など）"},{"$f":"+アンケート!Z288","v":false}]
[null,{"$f":"+アンケート!C289","v":"機器類の調達環境（価格・台数）について業界への働きかけ"},{"$f":"+アンケート!Z289","v":false}]
[null,{"$f":"+アンケート!C290","v":"機器類の調達や人材育成に係る費用助成制度の導入"},{"$f":"+アンケート!Z290","v":false}]
[null,{"$f":"+アンケート!C291","v":"技術者向けの実務研修会・講習会等の開催"},{"$f":"+アンケート!Z291","v":false}]
[null,{"$f":"+アンケート!C292","v":"経営者向けの実務研修会・講習会等の開催"},{"$f":"+アンケート!Z292","v":false}]
[null,{"$f":"+アンケート!C293","v":"その他"},{"$f":"+アンケート!Z293","v":false}]
[null,{"$f":"+アンケート!C294","v":"※「その他」を選択した場合は、具体な内容を記入してください。"},{"$f":"+アンケート!Z294","v":0}]
[{"$f":"+アンケート!A299","v":"問11"},{"$f":"+アンケート!C299","v":"今回工事で行った「建設現場の生産性向上」の取組として、特にアピールする点がありましたら、ご記入ください。"}]
[null,"自由入力",{"$f":"+アンケート!Z301","v":0}]
[{"$f":"+アンケート!A307","v":"問12"},{"$f":"+アンケート!C307","v":"その他、ICT活用工事に関して、ご意見等がありましたら、ご記入ください。"}]
[null,"自由入力",{"$f":"+アンケート!Z308","v":0}]

{"sheet":"グラフ計算シート","index":2,"n_rows":16,"n_cols":7,"rows_kept":16,"cut":false,"hidden":true,"merged":[]}
["導入効果"]
["シート：R3.6～"]
["○延べ作業人員"]
[null,"起工測量","３次元設計（測量設計）","施工","出来形管理","電子納品","合計"]
["従来",{"$f":"+アンケート!Z81","v":0},{"$f":"+アンケート!Z106","v":0},{"$f":"+アンケート!Z131","v":0},{"$f":"+アンケート!Z156","v":0},{"$f":"+アンケート!Z177","v":0},{"$f":"+SUM(B5:F5)","v":0}]
["ＩＣＴ",{"$f":"+アンケート!Z88","v":0},{"$f":"+アンケート!Z113","v":0},{"$f":"+アンケート!Z139","v":0},{"$f":"+アンケート!Z161","v":0},{"$f":"+アンケート!Z182","v":0},{"$f":"+SUM(B6:F6)","v":0}]
[null,{"$f":"(B6-B5)/B5","v":{"$error":"#DIV/0!"}},{"$f":"(C6-C5)/C5","v":{"$error":"#DIV/0!"}},{"$error":"#DIV/0!"},{"$error":"#DIV/0!"},{"$error":"#DIV/0!"},{"$error":"#DIV/0!"}]
[]
[]
[]
[]
["○所要日数"]
[null,"起工測量","３次元設計（測量設計）","施工","出来形管理","電子納品","合計"]
["従来",{"$f":"+アンケート!K80","v":0},{"$f":"+アンケート!K105","v":0},{"$f":"+アンケート!K130","v":0},{"$f":"+アンケート!K155","v":0},{"$f":"+アンケート!K176","v":0},{"$f":"+SUM(B14:F14)","v":0}]
["ＩＣＴ",{"$f":"+アンケート!K87","v":0},{"$f":"+アンケート!K112","v":0},{"$f":"+アンケート!K138","v":0},{"$f":"+アンケート!K160","v":0},{"$f":"+アンケート!K181","v":0},{"$f":"+SUM(B15:F15)","v":0}]
["変動",{"$f":"(B15-B14)/B14","v":{"$error":"#DIV/0!"}},{"$f":"(C15-C14)/C14","v":{"$error":"#DIV/0!"}},{"$error":"#DIV/0!"},{"$error":"#DIV/0!"},{"$error":"#DIV/0!"},{"$error":"#DIV/0!"}]